fUSD/lending_fUSD_20260207
["ID","MTS","AMOUNT","RATE_DAILY","PERIOD"]
[404724844,1770492648043,-789.245378,0.00039726,120]
[404724845,1770492648053,-789.245378,0.00039726,120]
[404724846,1770492648063,-354.385804,0.00039726,120]
[404724847,1770492648074,-789.245378,0.00039726,120]
[404724848,1770492648083,-354.385804,0.00039726,120]
[404724849,1770492648093,-253.358723,0.00039726,120]
[404724850,1770492648103,-789.245378,0.00039726,120]
[404724851,1770492648114,-253.358723,0.00039726,120]
[404724852,1770492648123,-354.385804,0.00039726,120]
[404724853,1770492648132,-789.245378,0.00039726,120]
[404724854,1770492648141,-354.385804,0.00039726,120]
[404724855,1770492648151,-253.358723,0.00039726,120]
[404724856,1770492648159,-789.245378,0.00039726,120]
[404724857,1770492648170,-253.358723,0.00039726,120]
[404724858,1770492648180,-789.245378,0.00039726,120]
[404724859,1770492648190,-354.385804,0.00039726,120]
[404724860,1770492648199,-789.245378,0.00039726,120]
[404724861,1770492648208,-151.0,0.00039726,120]
[404724862,1770492648219,-253.358723,0.00039726,120]
[404724863,1770492648229,-354.385804,0.00039726,120]
[404724864,1770492648239,-253.358723,0.00039726,120]
[404724865,1770492648249,-151.0,0.00039726,120]
[404724866,1770492648261,-354.385804,0.00039726,120]
[404724867,1770492648271,-253.358723,0.00039726,120]
[404724868,1770492648282,-354.385804,0.00039726,120]
[404724869,1770492648292,-151.0,0.00039726,120]
[404724870,1770492648302,-253.358723,0.00039726,120]
[404724871,1770492648311,-151.0,0.00039726,120]
[404724872,1770492648322,-151.0,0.00039726,120]
[404724873,1770492648332,-151.0,0.00039726,120]
[404724874,1770492648344,-151.0,0.00039726,120]
[404724875,1770492648354,-151.0,0.00039726,120]
[404724876,1770492648364,-151.0,0.00039726,120]
[404724877,1770492648379,-151.0,0.00039726,120]
[404724878,1770492648391,-151.0,0.00039726,120]
[404724879,1770492648400,-151.0,0.00039726,120]
[404724880,1770492648410,-151.0,0.00039726,120]
[404724881,1770492648421,-151.0,0.00039726,120]
[404724882,1770492648432,-151.0,0.00039726,120]
[404724883,1770492648442,-157.486247,0.00039726,120]
[404724884,1770492648452,-151.0,0.00039726,120]
[404724885,1770492648463,-151.0,0.00039726,120]
[404724886,1770492648474,-260.722752,0.00039726,120]
[404724887,1770492648485,-171.14165,0.00039726,120]
[404724888,1770492648495,-151.0,0.00039726,120]
[404724889,1770492648505,-151.0,0.00039726,120]
[404724890,1770492648515,-151.0,0.00039726,120]
[404724891,1770492648526,-151.0,0.00039726,120]
[404724892,1770492648537,-151.0,0.00039726,120]
[404724893,1770492648550,-151.0,0.00039726,120]
[404724894,1770492648560,-153.918653,0.00039726,120]
[404724895,1770492648570,-274.292,0.00039726,120]
[404724896,1770492648580,-274.292,0.00039726,120]
[404724897,1770492648590,-202.335741,0.00039726,120]
[404724898,1770492648600,-274.292,0.00039726,120]
[404724899,1770492648611,-274.292,0.00039726,120]
[404724900,1770492648621,-274.292,0.00039726,120]
[404724901,1770492648634,-274.292,0.00039726,120]
[404724902,1770492648646,-405.622787,0.00039726,120]
[404724903,1770492648657,-405.622787,0.00039726,120]
[404724904,1770492648666,-198.72788,0.00039726,120]
[404724905,1770492648675,-274.292,0.00039726,120]
[404724906,1770492648685,-198.72788,0.00039726,120]
[404724907,1770492648695,-274.292,0.00039726,120]
[404724908,1770492648884,-405.622787,0.00039726,120]
[404724909,1770492648894,-405.622787,0.00039726,120]
[404724910,1770492648903,-198.72788,0.00039726,120]
[404724911,1770492648910,-198.72788,0.00039726,120]
[404724912,1770492648916,-154.248226,0.00039726,120]
[404724913,1770492648924,-405.622787,0.00039726,120]
[404724914,1770492648932,-405.622787,0.00039726,120]
[404724915,1770492648939,-198.72788,0.00039726,120]
[404724916,1770492648947,-198.72788,0.00039726,120]
[404724917,1770492648955,-405.622787,0.00039726,120]
[404724918,1770492648967,-319.7639,0.00039726,120]
[404724919,1770492648975,-405.622787,0.00039726,120]
[404724920,1770492648982,-319.7639,0.00039726,120]
[404724921,1770492648990,-198.72788,0.00039726,120]
[404724922,1770492648997,-198.72788,0.00039726,120]
[404724923,1770492649005,-319.7639,0.00039726,120]
[404724924,1770492649013,-319.7639,0.00039726,120]
[404724925,1770492649021,-481.99533,0.00039726,31]
[404724926,1770492649029,-481.99533,0.00039726,31]
[404724927,1770492649036,-319.7639,0.00039726,120]
[404724928,1770492649046,-319.7639,0.00039726,120]
[404724929,1770492649052,-481.99533,0.00039726,31]
[404724930,1770492649059,-481.99533,0.00039726,31]
[404724931,1770492649066,-319.7639,0.00039726,120]
[404724932,1770492649075,-319.7639,0.00039726,120]
[404724933,1770492649084,-481.99533,0.00039726,31]
[404724934,1770492649094,-481.99533,0.00039726,31]
[404724935,1770492649104,-481.99533,0.00039726,31]
[404724936,1770492649113,-203.769917,0.00039726,120]
[404724937,1770492649123,-481.99533,0.00039726,31]
[404724938,1770492649132,-203.769917,0.00039726,120]
[404724939,1770492649142,-151.0,0.00039726,120]
[404724940,1770492649151,-151.0,0.00039726,120]
[404724941,1770492649161,-203.769917,0.00039726,120]
[404724942,1770492649171,-203.769917,0.00039726,120]
[404724943,1770492649181,-151.0,0.00039726,120]
[404724944,1770492649191,-151.0,0.00039726,120]
[404724945,1770492649200,-203.769917,0.00039726,120]
[404724946,1770492649210,-203.769917,0.00039726,120]
[404724947,1770492649220,-203.769917,0.00039726,120]
[404724948,1770492649230,-203.769917,0.00039726,120]
[404724949,1770492649241,-151.0,0.00039726,120]
[404724950,1770492649252,-151.0,0.00039726,120]
[404724951,1770492649262,-151.0,0.00039726,120]
[404724952,1770492649273,-151.0,0.00039726,120]
[404724953,1770492649283,-157.292835,0.00039726,120]
[404724954,1770492649294,-202.437854,0.00039726,120]
[404724955,1770492649305,-202.437854,0.00039726,120]
[404724956,1770492649315,-202.437854,0.00039726,120]
[404724957,1770492649325,-202.437854,0.00039726,120]
[404724958,1770492649335,-202.437854,0.00039726,120]
[404724959,1770492649344,-202.437854,0.00039726,120]
[404724960,1770492649356,-151.0,0.00039726,120]
[404724961,1770492649367,-202.437854,0.00039726,120]
[404724962,1770492649379,-151.0,0.00039726,120]
[404724963,1770492649390,-202.437854,0.00039726,120]
[404724964,1770492649401,-151.0,0.00039726,120]
[404724965,1770492649411,-382.622478,0.00039726,120]
[404724966,1770492649424,-382.622478,0.00039726,120]
[404724967,1770492649434,-151.0,0.00039726,120]
[404724968,1770492649446,-151.0,0.00039726,120]
[404724969,1770492649458,-151.0,0.00039726,120]
[404724970,1770492649469,-382.622478,0.00039726,120]
[404724971,1770492649479,-151.0,0.00039726,120]
[404724972,1770492649490,-156.847385,0.00039726,120]
[404724973,1770492649500,-382.622478,0.00039726,120]
[404724974,1770492649510,-382.622478,0.00039726,120]
[404724975,1770492649519,-250.173975,0.00039726,120]
[404724976,1770492649529,-382.622478,0.00039726,120]
[404724977,1770492649538,-382.622478,0.00039726,120]
[404724978,1770492649548,-382.622478,0.00039726,120]
[404724979,1770492649557,-151.0,0.00039726,7]
[404724980,1770492649567,-151.0,0.00039726,7]
[404724981,1770492649578,-151.0,0.00039726,7]
[404724982,1770492649587,-151.0,0.00039726,7]
[404724983,1770492649597,-151.0,0.00039726,7]
[404724984,1770492649607,-151.0,0.00039726,7]
[404724985,1770492649617,-571.301782,0.00039726,120]
[404724986,1770492649627,-571.301782,0.00039726,120]
[404724987,1770492649636,-571.301782,0.00039726,120]
[404724988,1770492649646,-571.301782,0.00039726,120]
[404724989,1770492649656,-300.0,0.0003973,2]
[404724990,1770492649667,-1555.65160634,0.0003973,2]
[404724991,1770492649677,-301.00005478,0.0003973,2]
[404724992,1770492649687,-300.0,0.0003973,2]
[404724993,1770492649696,-1555.65160634,0.0003973,2]
[404724994,1770492649706,-301.07727531,0.0003973,2]
[404724995,1770492649715,-302.09009539,0.0003973,2]
[404724996,1770492649725,-301.35929653,0.0003973,2]
[404724997,1770492649734,-534.9150651,0.0003973,2]
[404724998,1770492649744,-301.12507782,0.0003973,2]
[404724999,1770492649753,-300.0,0.0003973,2]
[404725000,1770492649763,-1512.32507296,0.00039755,2]
[404725001,1770492649772,-199.9806,0.00039888,30]
[404725002,1770492649781,-165.0,0.000399,30]
[404725003,1770492649790,-500.0,0.0004,2]
[404725004,1770492649801,-256.06,0.0004,120]
[404725005,1770492649811,-316.47,0.0004,120]
[404725006,1770492649821,-686.41,0.0004,120]
[404725007,1770492649831,-571.89,0.0004,120]
[404725008,1770492649841,-356.53,0.0004,120]
[404725009,1770492649852,-868.01,0.0004,120]
[404725010,1770492649861,-234.24,0.0004,120]
[404725011,1770492649871,-1369.65,0.0004,120]
[404725012,1770492649881,-250.0,0.0004,45]
[404725013,1770492649891,-151.0,0.0004,120]
[404725014,1770492649901,-250.0,0.0004,45]
[404725015,1770492649911,-154.0,0.0004,120]
[404725016,1770492649921,-571.44437071,0.0004,120]
[404725017,1770492649930,-426.1842504,0.0004,7]
[404725018,1770492649940,-58660.35986833,0.0004,120]
[404725019,1770492649950,-15024.43680042,0.0004,4]
[404725020,1770492649959,-151.0,0.0004,120]
[404725021,1770492649969,-151.0,0.0004,120]
[404725022,1770492649979,-177.764084,0.0004,120]
[404725023,1770492649988,-201.93775137,0.0004,120]
[404725024,1770492649998,-176.242688,0.0004,120]
[404725025,1770492650007,-262.96518185,0.0004,120]
[404725026,1770492650017,-177.764084,0.0004,120]
[404725027,1770492650026,-151.0,0.0004,120]
[404725028,1770492650035,-177.764084,0.0004,120]
[404725029,1770492650045,-151.0,0.0004,120]
[404725030,1770492650055,-177.764084,0.0004,120]
[404725031,1770492650064,-151.0,0.0004,120]
[404725032,1770492650075,-166.542074,0.0004,120]
[404725033,1770492650085,-261.499796,0.0004,120]
[404725034,1770492650095,-502.808381,0.0004,120]
[404725035,1770492650106,-502.808381,0.0004,120]
[404725036,1770492650117,-502.808381,0.0004,120]
[404725037,1770492650128,-502.808381,0.0004,120]
[404725038,1770492650137,-151.0,0.0004,120]
[404725039,1770492650147,-394.02289,0.0004,120]
[404725040,1770492650158,-752.59173722,0.0004,120]
[404725041,1770492650167,-394.02289,0.0004,120]
[404725042,1770492650178,-394.02289,0.0004,120]
[404725043,1770492650187,-151.0,0.0004,28]
[404725044,1770492650197,-394.02289,0.0004,120]
[404725045,1770492650207,-151.0,0.0004,28]
[404725046,1770492650217,-3798.30663054,0.0004,7]
[404725047,1770492650226,-989.14299836,0.0004,7]
[404725048,1770492650236,-151.0,0.0004,120]
[404725049,1770492650245,-356.992836,0.0004,120]
[404725050,1770492650255,-356.992836,0.0004,120]
[404725051,1770492650271,-209.90308875,0.0004,14]
[404725052,1770492650280,-172123.81711092,0.0004,120]
[404725053,1770492650290,-356.992836,0.0004,120]
[404725054,1770492650299,-4103.61690192,0.0004,2]
[404725055,1770492650309,-356.992836,0.0004,120]
[404725056,1770492650318,-1279.84291379,0.0004,30]
[404725057,1770492650328,-5146.02646052,0.0004,120]
[404725058,1770492650338,-157.98328468,0.0004,120]
[404725059,1770492650349,-955.78179387,0.0004,2]
[404725060,1770492650360,-167.61262427,0.0004,120]
[404725061,1770492650370,-246.14908595,0.0004,120]
[404725062,1770492650385,-425778.7601684,0.0004,120]
[404725063,1770492650617,-370.0130229,0.0004,120]
[404725064,1770492650920,-439.5,0.00016167,2]
[404725065,1770492650931,-1977.1484,0.00016167,2]
[404725066,1770492651076,-370.45,0.00016167,2]
[404725067,1770492651087,-904.12207549,0.00016167,2]
[404725068,1770492651099,-58.73101418,0.00016167,2]
[404725069,1770492651108,-338.16273626,0.00029024,2]
[404725070,1770492651117,-554.69100505,0.00035239,2]
[404725071,1770492663694,690.0,0.0003561,30]
[404725072,1770492664477,803.0,0.0003561,30]
[404725076,1770492725840,419.0,0.0003561,30]
[404725077,1770492845922,280.0,0.0003561,30]
[404725078,1770492868051,165.03,0.000306,30]
[404725079,1770492906114,651.0,0.0003561,30]
[404725084,1770493126742,1600.0,0.00028752,120]
[404725085,1770493126790,1600.0,0.00032346,120]
[404725092,1770493413250,1161.9,0.00027397,30]
[404725093,1770493413452,1161.9,0.00032232,30]
[404725094,1770493464008,181.29228187,0.000356,120]
[404725095,1770493481138,170.71204111,0.000356,120]
[404725096,1770493489034,184.70662914,0.000356,120]
[404725097,1770493681043,179.26438629,0.000356,120]
[404725114,1770493832119,-287.06431718,0.00013585,2]
[404725115,1770493832131,-263.17762842,0.00013585,2]
[404725116,1770493832141,-453.08726646,0.00013585,2]
[404725117,1770493832150,-838.95780777,0.00013606,2]
[404725118,1770493832162,-937.63519223,0.00013606,2]
[404725119,1770493832171,-175.948,0.00013606,2]
[404725120,1770493832181,-300.0,0.0001368,2]
[404725121,1770493832190,-161.63540284,0.00013681,2]
[404725122,1770493832201,-177.93914196,0.00013681,2]
[404725123,1770493832211,-151.40335379,0.00013681,2]
[404725124,1770493832220,-500.0,0.00013681,2]
[404725125,1770493832229,-500.0,0.00013681,2]
[404725126,1770493832238,-500.0,0.00013681,2]
[404725127,1770493832247,-500.0,0.00013681,2]
[404725128,1770493832256,-500.0,0.00013681,2]
[404725129,1770493832266,-500.0,0.00013681,2]
[404725130,1770493832275,-500.0,0.00013681,2]
[404725131,1770493832284,-500.0,0.00013681,2]
[404725132,1770493832293,-500.0,0.00013681,2]
[404725133,1770493832302,-500.0,0.00013681,2]
[404725134,1770493832311,-500.0,0.00013681,2]
[404725135,1770493832319,-500.0,0.00013681,2]
[404725136,1770493832328,-500.0,0.00013681,2]
[404725137,1770493832338,-500.0,0.00013681,2]
[404725138,1770493832347,-500.0,0.00013681,2]
[404725139,1770493832357,-500.0,0.00013681,2]
[404725140,1770493832367,-500.0,0.00013681,2]
[404725141,1770493832377,-500.0,0.00013681,2]
[404725142,1770493832386,-500.0,0.00013681,2]
[404725144,1770493832395,-500.0,0.00013681,2]
[404725146,1770493832405,-500.0,0.00013681,2]
[404725148,1770493832414,-500.0,0.00013681,2]
[404725150,1770493832423,-643.93332131,0.00013681,2]
[404725153,1770493832433,-500.0,0.00013681,2]
[404725156,1770493832443,-500.0,0.00013681,2]
[404725159,1770493832452,-500.0,0.00013681,2]
[404725161,1770493832462,-245.16438176,0.00013681,2]
[404725163,1770493832471,-500.0,0.00013681,2]
[404725165,1770493832480,-500.0,0.00013681,2]
[404725167,1770493832490,-500.0,0.00013681,2]
[404725168,1770493832499,-500.0,0.00013681,2]
[404725169,1770493832509,-500.0,0.00013681,2]
[404725170,1770493832518,-500.0,0.00013681,2]
[404725171,1770493832528,-500.0,0.00013681,2]
[404725172,1770493832537,-500.0,0.00013681,2]
[404725174,1770493832547,-500.0,0.00013681,2]
[404725175,1770493832556,-500.0,0.00013681,2]
[404725176,1770493832566,-500.0,0.00013681,2]
[404725177,1770493832576,-500.0,0.00013681,2]
[404725178,1770493832586,-500.0,0.00013681,2]
[404725179,1770493832595,-500.0,0.00013681,2]
[404725180,1770493832604,-500.0,0.00013681,2]
[404725181,1770493832614,-500.0,0.00013681,2]
[404725182,1770493832624,-500.0,0.00013681,2]
[404725183,1770493832634,-500.0,0.00013681,2]
[404725184,1770493832644,-500.0,0.00013681,2]
[404725185,1770493832654,-500.0,0.00013681,2]
[404725186,1770493832664,-500.0,0.00013681,2]
[404725187,1770493832674,-500.0,0.00013681,2]
[404725188,1770493832684,-500.0,0.00013681,2]
[404725189,1770493832693,-500.0,0.00013681,2]
[404725190,1770493832703,-500.0,0.00013681,2]
[404725191,1770493832712,-500.0,0.00013681,2]
[404725192,1770493832721,-500.0,0.00013681,2]
[404725193,1770493832735,-500.0,0.00013681,2]
[404725194,1770493832745,-500.0,0.00013681,2]
[404725195,1770493832755,-500.0,0.00013681,2]
[404725196,1770493832765,-500.0,0.00013681,2]
[404725197,1770493832776,-500.0,0.00013681,2]
[404725198,1770493832785,-500.0,0.00013681,2]
[404725199,1770493832795,-500.0,0.00013681,2]
[404725200,1770493832804,-500.0,0.00013681,2]
[404725201,1770493832814,-500.0,0.00013681,2]
[404725202,1770493832824,-500.0,0.00013681,2]
[404725203,1770493832834,-500.0,0.00013681,2]
[404725204,1770493832844,-500.0,0.00013681,2]
[404725205,1770493832853,-500.0,0.00013681,2]
[404725206,1770493832863,-500.0,0.00013681,2]
[404725207,1770493832872,-500.0,0.00013681,2]
[404725208,1770493832881,-560.0,0.00013681,2]
[404725209,1770493832890,-500.0,0.00013681,2]
[404725210,1770493832900,-500.0,0.00013681,2]
[404725211,1770493832909,-500.0,0.00013681,2]
[404725212,1770493832918,-500.0,0.00013681,2]
[404725213,1770493832927,-500.0,0.00013681,2]
[404725214,1770493832936,-500.0,0.00013681,2]
[404725215,1770493832945,-99.86392714,0.00013681,2]
[404725216,1770493832958,-400.13607286,0.00013681,2]
[404725217,1770493832967,-500.0,0.00013681,2]
[404725218,1770493832976,-500.0,0.00013681,2]
[404725219,1770493832985,-500.0,0.00013681,2]
[404725220,1770493832995,-500.0,0.00013681,2]
[404725221,1770493833004,-500.0,0.00013681,2]
[404725222,1770493833013,-500.0,0.00013681,2]
[404725223,1770493833023,-500.0,0.00013681,2]
[404725224,1770493833033,-2500.0,0.00013682,2]
[404725225,1770493833042,-42708.56762084,0.00013682,2]
[404725226,1770493833054,-2452.73393138,0.00013682,2]
[404725227,1770493833065,-7982.67379818,0.00013682,2]
[404725228,1770493833077,-784.54454562,0.00013682,2]
[404725229,1770493833088,-663.23209819,0.00013682,2]
[404725230,1770493833099,-500.0,0.00013682,2]
[404725231,1770493833118,-1151.18960832,0.00013682,2]
[404725232,1770493833129,-1470.07670614,0.00013682,2]
[404725233,1770493833144,-6425.0118591,0.00013682,2]
[404725234,1770493838163,-3272.88057742,0.00013585,2]
[404725235,1770493838173,-7386.92192715,0.00013682,2]
[404725236,1770493838184,-1416.40035,0.00013682,2]
[404725237,1770493838216,-254.18043806,0.00013682,2]
[404725238,1770493838480,-1807571.64693333,0.00013682,2]
[404725239,1770493838493,-629.09911329,0.00013682,2]
[404725240,1770493838534,-793.66649967,0.00013682,2]
[404725241,1770493838589,-446.26987052,0.00013682,2]
[404725244,1770493840579,-725342.39264321,0.00013682,2]
[404725246,1770493844896,-1323.95192,0.00013682,2]
[404725262,1770493846152,-6128.12246198,0.00013682,2]
[404725303,1770493866979,639.719826,0.00035316,30]
[404725304,1770493924876,520.0,0.00035616,30]
[404725305,1770493924909,151.0,0.00035616,30]
[404725306,1770493924939,151.0,0.00035616,30]
[404725307,1770493924970,1000.0,0.00035616,30]
[404725308,1770493925004,151.0,0.00035616,30]
[404725309,1770493925043,151.0,0.00035616,30]
[404725310,1770493925358,620.0,0.00035616,30]
[404725311,1770493925476,151.0,0.00035616,30]
[404725312,1770493925508,539.24,0.00035616,30]
[404725313,1770493925543,156.587,0.00035616,30]
[404725314,1770493925575,1000.0,0.00035616,30]
[404725315,1770493925610,151.0,0.00035616,30]
[404725316,1770493925645,151.0,0.00035616,30]
[404725317,1770493925956,500.0,0.00035616,30]
[404725318,1770493925987,642.94,0.00035616,30]
[404725319,1770493926086,162.380719,0.00035616,30]
[404725320,1770493926117,151.0,0.00035616,30]
[404725321,1770493926147,559.19188,0.00035616,30]
[404725322,1770493926179,1000.0,0.00035616,30]
[404725323,1770493926211,151.0,0.00035616,30]
[404725324,1770493926250,151.0,0.00035616,30]
[404725325,1770493926564,666.72878,0.00035616,30]
[404725326,1770493926596,500.0,0.00035616,30]
[404725327,1770493926685,168.3888056,0.00035616,30]
[404725328,1770493926717,151.0,0.00035616,30]
[404725329,1770493926750,579.88197956,0.00035616,30]
[404725330,1770493926786,1000.0,0.00035616,30]
[404725331,1770493926931,151.0,0.00035616,30]
[404725332,1770493927033,151.0,0.00035616,30]
[404725333,1770493927193,500.0,0.00035616,30]
[404725334,1770493927225,691.39774486,0.00035616,30]
[404725335,1770493927294,174.61919141,0.00035616,30]
[404725336,1770493927327,1000.0,0.00035616,30]
[404725337,1770493927359,151.0,0.00035616,30]
[404725338,1770493927393,151.0,0.00035616,30]
[404725339,1770493927427,151.0,0.00035616,30]
[404725340,1770493927461,601.3376128,0.00035616,30]
[404725341,1770493927494,151.0,0.00035616,30]
[404725342,1770493927765,500.0,0.00035616,30]
[404725343,1770493927846,716.97946142,0.00035616,30]
[404725344,1770493927890,181.08010149,0.00035616,30]
[404725345,1770493927928,1030.0,0.00035616,30]
[404725346,1770493927973,151.0,0.00035616,30]
[404725347,1770493928006,1000.0,0.00035616,30]
[404725348,1770493928047,151.0,0.00035616,30]
[404725349,1770493928080,151.0,0.00035616,30]
[404725350,1770493928117,623.58710448,0.00035616,30]
[404725351,1770493928149,151.0,0.00035616,30]
[404725352,1770493928204,500.0,0.00035616,30]
[404725353,1770493928392,500.0,0.00035616,30]
[404725354,1770493928430,743.50770149,0.00035616,30]
[404725355,1770493928484,187.78006525,0.00035616,30]
[404725356,1770493928520,1068.11,0.00035616,30]
[404725357,1770493928562,151.0,0.00035616,30]
[404725358,1770493928607,1000.0,0.00035616,30]
[404725359,1770493928652,646.65982734,0.00035616,30]
[404725360,1770493928687,151.0,0.00035616,30]
[404725361,1770493928727,151.0,0.00035616,30]
[404725362,1770493928803,500.0,0.00035616,30]
[404725363,1770493928971,500.0,0.00035616,30]
[404725364,1770493929018,771.01748645,0.00035616,30]
[404725365,1770493929057,151.0,0.00035616,30]
[404725366,1770493929100,194.72792766,0.00035616,30]
[404725367,1770493929136,1107.63007,0.00035616,30]
[404725368,1770493929170,151.0,0.00035616,30]
[404725369,1770493929221,1000.0,0.00035616,30]
[404725370,1770493929256,670.58624095,0.00035616,30]
[404725371,1770493929297,151.0,0.00035616,30]
[404725372,1770493929369,151.0,0.00035616,30]
[404725373,1770493929421,500.0,0.00035616,30]
[404725375,1770493929577,500.0,0.00035616,30]
[404725376,1770493929613,799.54513345,0.00035616,30]
[404725377,1770493929669,151.0,0.00035616,30]
[404725378,1770493929709,201.93286099,0.00035616,30]
[404725379,1770493929751,151.0,0.00035616,30]
[404725380,1770493930036,1148.61238259,0.00035616,30]
[404725381,1770493930080,1000.0,0.00035616,30]
[404725382,1770493930114,151.0,0.00035616,30]
[404725383,1770493930146,695.39793187,0.00035616,30]
[404725384,1770493930283,151.0,0.00035616,30]
[404725385,1770493930338,500.0,0.00035616,30]
[404725386,1770493930378,203.84932823,0.00035616,30]
[404725387,1770493930424,945.58912302,0.00035616,30]
[404725388,1770493930477,209.40437684,0.00035616,30]
[404725389,1770493930513,151.0,0.00035616,30]
[404725390,1770493930564,1112.81223952,0.00035616,30]
[404725391,1770493930598,151.0,0.00035616,30]
[404725392,1770493930642,151.0,0.00035616,30]
[404725393,1770493930677,721.12765535,0.00035616,30]
[404725394,1770493930727,151.0,0.00035616,30]
[404725395,1770493930763,1000.0,0.00035616,30]
[404725396,1770493930806,500.0,0.00035616,30]
[404725397,1770493930868,217.15233878,0.00035616,30]
[404725398,1770493930901,151.0,0.00035616,30]
[404725399,1770493930951,151.0,0.00035616,30]
[404725400,1770493931024,151.0,0.00035616,30]
[404725401,1770493931079,747.8093786,0.00035616,30]
[404725402,1770493931156,151.0,0.00035616,30]
[404725403,1770493931202,1000.0,0.00035616,30]
[404725404,1770493931239,500.0,0.00035616,30]
[404725405,1770493931468,225.18697532,0.00035616,30]
[404725406,1770493931503,151.0,0.00035616,30]
[404725407,1770493931545,151.0,0.00035616,30]
[404725408,1770493931638,151.0,0.00035616,30]
[404725409,1770493931673,775.47832561,0.00035616,30]
[404725410,1770493931779,151.0,0.00035616,30]
[404725411,1770493931813,1000.0,0.00035616,30]
[404725412,1770493931868,500.0,0.00035616,30]
[404725413,1770493932070,151.0,0.00035616,30]
[404725414,1770493932113,233.51889341,0.00035616,30]
[404725415,1770493932198,151.0,0.00035616,30]
[404725416,1770493932241,151.0,0.00035616,30]
[404725417,1770493932291,804.17102365,0.00035616,30]
[404725418,1770493932369,151.0,0.00035616,30]
[404725419,1770493932423,1000.0,0.00035616,30]
[404725420,1770493932465,500.0,0.00035616,30]
[404725421,1770493932723,151.0,0.00035616,30]
[404725422,1770493932789,151.0,0.00035616,30]
[404725423,1770493932869,151.0,0.00035616,30]
[404725424,1770493932947,833.92535153,0.00035616,30]
[404725425,1770493932990,151.0,0.00035616,30]
[404725426,1770493933026,1000.0,0.00035616,30]
[404725427,1770493933076,500.0,0.00035616,30]
[404725428,1770493933174,242.15909246,0.00035616,30]
[404725429,1770493933205,500.0,0.00035616,30]
[404725430,1770493933245,500.0,0.00035616,30]
[404725431,1770493933593,274.7809165,0.00035616,30]
[404725432,1770493933629,151.0,0.00035616,30]
[404725433,1770493933662,864.78058953,0.00035616,30]
[404725434,1770493933696,151.0,0.00035616,30]
[404725435,1770493933731,1000.0,0.00035616,30]
[404725436,1770493933779,500.0,0.00035616,30]
[404725437,1770493933829,151.0,0.00035616,30]
[404725438,1770493933867,251.11897888,0.00035616,30]
[404725439,1770493933897,500.0,0.00035616,30]
[404725440,1770493933931,456.84533488,0.00035616,30]
[404725441,1770493933978,1000.0,0.00035616,30]
[404725442,1770493934049,151.0,0.00035616,30]
[404725443,1770493934081,896.77747135,0.00035616,30]
[404725444,1770493934183,151.0,0.00035616,30]
[404725445,1770493934232,1000.0,0.00035616,30]
[404725446,1770493934378,151.0,0.00035616,30]